bitfinex/quotes_BTCUSD_20240723
["timestamp","ask_amount","ask_price","bid_price","bid_amount"]
[1721728742667,2.62815966,67124.0,67123.0,0.00416376]
[1721728744481,2.62815966,67124.0,67123.0,0.00412239]
[1721728745621,2.62899966,67124.0,67123.0,0.00412239]
[1721728746976,2.69549966,67124.0,67123.0,0.00412239]
[1721728747199,2.69547364,67124.0,67123.0,0.00412239]
[1721728748604,2.69547364,67124.0,67120.0,3.9e-07]
[1721728748605,1.35586,67121.0,67120.0,3.9e-07]
[1721728748824,1.35586,67121.0,67106.0,0.0601]
[1721728748825,1.460022,67112.0,67108.0,0.090818]
[1721728749028,2.48186324,67112.0,67108.0,0.090818]
[1721728749310,2.65182589,67112.0,67108.0,0.090818]
[1721728750113,2.63682589,67112.0,67108.0,0.090818]
[1721728750314,2.64639309,67112.0,67108.0,0.090818]
[1721728750741,2.66039309,67112.0,67108.0,0.090818]
[1721728751628,2.67439309,67112.0,67108.0,0.090818]
[1721728753033,2.52743044,67112.0,67108.0,0.090818]
[1721728753241,2.90083944,67112.0,67108.0,0.009218]
[1721728753449,2.78826891,67112.0,67108.0,0.009218]
[1721728753653,2.96099476,67112.0,67108.0,0.009218]
[1721728754244,2.58758576,67112.0,67108.0,0.009218]
[1721728754442,2.73454841,67112.0,67108.0,0.009218]
[1721728755393,3.03255741,67112.0,67108.0,0.009218]
[1721728756211,3.03255741,67112.0,67111.0,0.0828]
[1721728756212,2.52073429,67112.0,67111.0,0.0828]
[1721728756675,2.53573429,67112.0,67111.0,0.002]
[1721728757064,2.53522847,67112.0,67111.0,0.002]
[1721728760860,2.89633747,67112.0,67111.0,0.002]
[1721728761064,3.04330012,67112.0,67111.0,0.002]
[1721728761423,3.04330012,67112.0,67111.0,0.00194931]
[1721728762231,3.04109778,67112.0,67111.0,0.00194931]
[1721728762903,2.87108009,67112.0,67111.0,0.00194931]
[1721728763136,3.04146747,67112.0,67111.0,0.00194931]
[1721728766163,3.04287923,67112.0,67111.0,0.00194931]
[1721728766393,3.04287895,67112.0,67111.0,0.00194931]
[1721728769211,2.87108009,67112.0,67111.0,0.00194931]
[1721728769410,3.04249259,67112.0,67111.0,0.00194931]
[1721728772574,2.87108009,67112.0,67111.0,0.00194931]
[1721728772807,3.02410747,67112.0,67111.0,0.00194931]
[1721728773490,2.96100747,67112.0,67111.0,0.00194931]
[1721728773738,2.79904482,67112.0,67111.0,0.00194931]
[1721728774177,2.81404482,67112.0,67111.0,0.00194931]
[1721728775897,2.72034851,67112.0,67111.0,0.00194931]
[1721728776104,2.81437579,67112.0,67111.0,0.00194931]
[1721728776316,2.96133844,67112.0,67111.0,0.00188722]
[1721728778792,3.09843844,67112.0,67111.0,0.00188722]
[1721728779008,3.09793879,67112.0,67111.0,0.00188722]
[1721728779314,3.09794232,67112.0,67111.0,0.00188722]
[1721728782192,3.09720201,67112.0,67111.0,0.00188722]
[1721728784162,3.02080201,67112.0,67111.0,0.00188722]
[1721728785372,3.02116161,67112.0,67111.0,0.00188722]
[1721728786568,3.31917061,67112.0,67111.0,0.00188722]
[1721728786893,3.56128677,67112.0,67111.0,0.00188722]
[1721728787223,3.31917061,67112.0,67111.0,0.00188722]
[1721728787423,3.56128677,67112.0,67111.0,0.00188722]
[1721728788724,3.56128677,67112.0,67111.0,0.0018387]
[1721728789279,3.31917061,67112.0,67111.0,0.0018387]
[1721728790532,3.17220796,67112.0,67111.0,0.0018387]
[1721728790746,3.09650796,67112.0,67111.0,0.0018387]
[1721728791167,3.35366259,67112.0,67111.0,0.0018387]
[1721728791391,3.11150796,67112.0,67111.0,0.0018387]
[1721728791810,2.8170249,67112.0,67111.0,0.0018387]
[1721728792225,2.96398755,67112.0,67111.0,0.0018387]
[1721728793054,3.10808755,67112.0,67111.0,0.0018387]
[1721728794845,3.10740224,67112.0,67111.0,0.0018387]
[1721728795777,3.10740224,67112.0,67108.0,0.009218]
[1721728795778,1.719921,67109.0,67108.0,0.009218]
[1721728795979,2.07946306,67109.0,67108.0,0.009218]
[1721728796226,2.37748506,67109.0,67108.0,0.009218]
[1721728796820,2.07946306,67109.0,67108.0,0.009218]
[1721728797421,2.10746306,67109.0,67108.0,0.009218]
[1721728799835,2.25296306,67109.0,67108.0,0.009218]
[1721728800179,2.31952571,67109.0,67108.0,0.009218]
[1721728801190,2.42340558,67109.0,67108.0,0.009218]
[1721728801390,2.42340558,67109.0,67102.0,0.009229]
[1721728801391,2.420269,67103.0,67102.0,0.009229]
[1721728801672,2.420269,67103.0,67102.0,0.088629]
[1721728801673,2.48744193,67103.0,67102.0,0.088629]
[1721728801881,2.72982572,67103.0,67102.0,0.088629]
[1721728802081,2.83081709,67103.0,67102.0,0.088629]
[1721728802306,2.48744193,67103.0,67102.0,0.088629]
[1721728802509,2.48744193,67103.0,67102.0,0.150329]
[1721728802718,2.50144193,67103.0,67102.0,0.150329]
[1721728802926,2.20339293,67103.0,67102.0,0.150329]
[1721728803136,1.48939293,67103.0,67102.0,0.150329]
[1721728803338,1.68939293,67103.0,67102.0,0.150329]
[1721728803760,1.70339293,67103.0,67102.0,0.150329]
[1721728803968,2.20339293,67103.0,67102.0,0.150329]
[1721728804445,1.50339293,67103.0,67102.0,0.150329]
[1721728804678,2.20339293,67103.0,67102.0,0.150329]
[1721728804957,2.18939293,67103.0,67102.0,0.150329]
[1721728805194,2.53044193,67103.0,67102.0,0.08450854]
[1721728807300,2.51197432,67103.0,67102.0,0.08450854]
[1721728807524,2.76342486,67103.0,67102.0,0.08450854]
[1721728807975,2.7634238,67103.0,67102.0,0.08450854]
[1721728808202,2.7634238,67103.0,67102.0,0.00510854]
[1721728808203,3.0911703,67103.0,67102.0,0.00510854]
[1721728808408,3.2361703,67103.0,67102.0,0.00510854]
[1721728809873,3.1397703,67103.0,67102.0,0.00510854]
[1721728810223,3.1537703,67103.0,67102.0,0.00510854]
[1721728810563,3.12291304,67103.0,67102.0,0.00510854]
[1721728810792,3.13691304,67103.0,67102.0,0.00510854]
[1721728811027,3.15091304,67103.0,67102.0,0.00510854]
[1721728811909,3.01617609,67103.0,67102.0,0.00510854]
[1721728812108,2.70312709,67103.0,67102.0,0.08310854]
[1721728812313,2.66612709,67103.0,67102.0,0.08310854]
[1721728812527,2.23747911,67103.0,67102.0,0.08310854]
[1721728812744,2.82808974,67103.0,67102.0,0.08310854]
[1721728812944,2.81308974,67103.0,67102.0,0.08310854]
[1721728813144,2.82708974,67103.0,67102.0,0.08310854]
[1721728813444,2.68721259,67103.0,67102.0,0.08310854]
[1721728813648,2.82887718,67103.0,67102.0,0.08310854]
[1721728813897,2.66691453,67103.0,67102.0,0.08310854]
[1721728814092,2.68991453,67103.0,67102.0,0.08310854]
[1721728814279,2.71891453,67103.0,67102.0,0.08310854]
[1721728815508,3.01696353,67103.0,67102.0,0.00510854]
[1721728815743,3.22552618,67103.0,67102.0,0.00510854]
[1721728817132,2.86587718,67103.0,67102.0,0.00510854]
[1721728817368,2.71021259,67103.0,67102.0,0.00510854]
[1721728817598,2.15064918,67103.0,67102.0,0.00510854]
[1721728817874,2.15064918,67103.0,67102.0,0.15230854]
[1721728817875,2.85064918,67103.0,67102.0,0.15230854]
[1721728818783,3.14869818,67103.0,67102.0,0.15230854]
[1721728819016,2.85064918,67103.0,67102.0,0.15230854]
[1721728819861,2.00368653,67103.0,67102.0,0.15230854]
[1721728820064,2.70499676,67103.0,67102.0,0.15230854]
[1721728820520,2.71999676,67103.0,67102.0,0.08830854]
[1721728821307,2.70499676,67103.0,67102.0,0.08830854]
[1721728821566,2.50499676,67103.0,67102.0,0.14950854]
[1721728821792,1.50694776,67103.0,67102.0,0.14950854]
[1721728822019,2.18394776,67103.0,67102.0,0.14950854]
[1721728822244,1.38589876,67103.0,67102.0,0.14950854]
[1721728822459,0.60537661,67103.0,67102.0,0.18450854]
[1721728822671,0.3711118,67103.0,67102.0,0.18450854]
[1721728822884,0.37105764,67103.0,67102.0,0.18450854]
[1721728823323,0.22203364,67103.0,67102.0,0.23450854]
[1721728823540,0.35705764,67103.0,67102.0,0.23450854]
[1721728823754,0.20803364,67103.0,67102.0,0.23450854]
[1721728823963,0.35705764,67103.0,67102.0,0.23450854]
[1721728824172,0.47105764,67103.0,67102.0,0.23450854]
[1721728824606,0.48505764,67103.0,67102.0,0.23450854]
[1721728824821,0.32203364,67103.0,67102.0,0.23450854]
[1721728825034,0.34503364,67103.0,67102.0,0.23450854]
[1721728825247,0.50805764,67103.0,67102.0,0.23450854]
[1721728825533,0.50805764,67103.0,67101.0,0.002]
[1721728825534,0.5,67102.0,67101.0,0.002]
[1721728825744,1.3114874,67102.0,67101.0,0.002]
[1721728825960,0.25239251,67102.0,67101.0,0.002]
[1721728826181,0.17005792,67102.0,67101.0,0.0823]
[1721728826401,0.37005792,67102.0,67101.0,0.231]
[1721728826617,0.29407783,67102.0,67101.0,0.231]
[1721728826852,0.30807783,67102.0,67101.0,0.281]
[1721728827310,0.29407783,67102.0,67101.0,0.281]
[1721728827761,0.30807783,67102.0,67101.0,0.281]
[1721728827977,0.30807783,67102.0,67101.0,0.3091]
[1721728827978,0.17501991,67102.0,67101.0,0.3091]
[1721728828418,0.30907501,67102.0,67101.0,0.3091]
[1721728828625,0.32307501,67102.0,67101.0,0.281]
[1721728828837,0.28107501,67102.0,67101.0,0.281]
[1721728829052,0.14701991,67102.0,67101.0,0.281]
[1721728829281,0.17501991,67102.0,67101.0,0.281]
[1721728829512,0.27501991,67102.0,67101.0,0.281]
[1721728829794,0.26101991,67102.0,67101.0,0.324004]
[1721728831448,0.24701991,67103.0,67102.0,0.58049072]
[1721728831687,0.35859779,67103.0,67102.0,0.64098014]
[1721728831925,0.24701991,67103.0,67102.0,0.64098014]
[1721728832163,0.24701991,67103.0,67102.0,0.60793942]
[1721728832638,0.26101991,67103.0,67102.0,0.60793942]
[1721728832916,0.26101991,67103.0,67102.0,0.53445]
[1721728833393,0.26101991,67103.0,67102.0,0.52345]
[1721728833773,0.26101991,67103.0,67102.0,0.77345]
[1721728834617,0.38551246,67103.0,67102.0,0.77445]
[1721728835150,0.27401991,67103.0,67102.0,0.77445]
[1721728836203,0.38551235,67103.0,67102.0,0.77445]
[1721728836656,0.27401991,67103.0,67102.0,0.77445]
[1721728837126,0.36317427,67103.0,67102.0,0.77445]
[1721728838276,0.36315784,67103.0,67102.0,0.77445]
[1721728838755,1.31719091,67103.0,67102.0,0.62605]
[1721728839024,1.47389781,67103.0,67102.0,0.62605]
[1721728839304,1.34019091,67103.0,67102.0,0.62605]
[1721728839555,1.32719091,67103.0,67102.0,0.62505]
[1721728839985,1.32719091,67103.0,67102.0,0.62605]
[1721728840215,1.32719091,67103.0,67102.0,0.54905]
[1721728840436,1.32719091,67103.0,67102.0,0.54805]
[1721728840667,1.62523991,67103.0,67102.0,0.54805]
[1721728840960,1.67256982,67103.0,67102.0,0.54905]
[1721728841206,1.65856982,67103.0,67102.0,0.54905]
[1721728841437,1.65856982,67103.0,67102.0,0.55005]
[1721728842108,1.65940982,67103.0,67102.0,0.55005]
[1721728842375,1.80985883,67103.0,67102.0,0.55005]
[1721728842856,1.65940982,67103.0,67102.0,0.55005]
[1721728844641,1.65926712,67103.0,67102.0,0.55005]
[1721728845632,1.71126712,67103.0,67102.0,0.55005]
[1721728846250,1.70926712,67103.0,67102.0,0.55005]
[1721728846669,1.71805687,67103.0,67102.0,0.55005]
[1721728847882,1.66824389,67103.0,67102.0,0.55005]
[1721728848361,1.86824389,67103.0,67102.0,0.55005]
[1721728850493,1.36140514,67103.0,67102.0,0.58505]
[1721728850685,1.36140514,67103.0,67102.0,0.66155]
[1721728850900,0.27085991,67103.0,67102.0,0.62655]
[1721728851117,0.31826725,67103.0,67102.0,0.66155]
[1721728851332,0.29526725,67103.0,67102.0,0.70955]
[1721728851797,0.19526725,67103.0,67102.0,0.70955]
[1721728852022,0.14785991,67103.0,67102.0,0.70955]
[1721728852513,0.14785991,67103.0,67102.0,0.77165]
[1721728852716,0.14785991,67103.0,67102.0,0.76965]
[1721728853042,0.16185991,67103.0,67102.0,0.76965]
[1721728853475,0.14785991,67103.0,67102.0,0.76965]
[1721728853686,0.14985991,67103.0,67102.0,0.77065]
[1721728853890,0.16385991,67103.0,67102.0,0.77065]
[1721728854256,0.16185991,67103.0,67102.0,0.76965]
[1721728854408,0.35930946,67103.0,67102.0,0.76965]
[1721728854775,0.24785991,67103.0,67102.0,0.76965]
[1721728855393,0.24985991,67103.0,67102.0,0.77065]
[1721728855605,0.21672823,67103.0,67102.0,0.77065]
[1721728855852,0.21672823,67103.0,67102.0,0.76965]
[1721728855853,0.21472823,67103.0,67102.0,0.76965]
[1721728856113,0.20643703,67103.0,67102.0,0.76965]
[1721728856288,0.20843703,67103.0,67102.0,0.77065]
[1721728856463,0.19443703,67103.0,67102.0,0.77065]
[1721728856795,0.00984,67103.0,67102.0,0.77065]
[1721728856971,0.00784,67103.0,67102.0,0.76965]
[1721728857377,0.00284,67103.0,67102.0,0.77065]
[1721728857754,0.00984,67103.0,67102.0,0.77065]
[1721728858684,0.00784,67103.0,67102.0,0.76965]
[1721728859037,0.00984,67103.0,67102.0,0.77065]
[1721728859239,0.00984,67103.0,67102.0,0.82065]
[1721728859437,0.00784,67103.0,67102.0,0.76965]
[1721728859661,0.00084,67103.0,67102.0,0.76965]
[1721728860094,0.00784,67103.0,67102.0,0.76965]
[1721728860271,0.00984,67103.0,67102.0,0.77065]
[1721728860470,0.00784,67103.0,67102.0,0.76965]
[1721728860674,0.00084,67103.0,67102.0,0.76965]
[1721728860879,0.00784,67103.0,67102.0,0.76965]
[1721728861540,0.00084,67103.0,67102.0,0.76965]
[1721728861688,0.00184,67103.0,67102.0,0.68665]
[1721728861892,0.00184,67103.0,67102.0,0.86965]
[1721728862101,0.00384,67103.0,67102.0,0.92065]
[1721728862303,0.00184,67103.0,67102.0,0.91965]
[1721728862787,0.00184,67103.0,67102.0,1.0464818]
[1721728863227,0.00184,67103.0,67102.0,1.04648002]
[1721728863430,0.00184,67103.0,67102.0,1.04648016]
[1721728863664,0.00184,67103.0,67102.0,0.92265]
[1721728863865,0.00184,67103.0,67102.0,1.13825]
[1721728864675,0.00184,67103.0,67102.0,1.08825]
[1721728864823,0.00184,67103.0,67102.0,0.68965]
[1721728865039,0.00184,67103.0,67102.0,0.77265]
[1721728865254,0.14885991,67103.0,67102.0,0.77265]
[1721728865702,0.14885991,67103.0,67102.0,0.71055]
[1721728866713,0.14885991,67103.0,67102.0,0.59905]
[1721728866906,0.27085991,67103.0,67102.0,0.63405]
[1721728867124,0.27085991,67103.0,67102.0,0.63105]
[1721728867125,0.33771266,67103.0,67102.0,0.63105]
[1721728867323,0.27485991,67103.0,67102.0,0.63105]
[1721728867737,0.27085991,67103.0,67102.0,0.63105]
[1721728868532,0.27885991,67103.0,67102.0,0.54805]
[1721728868746,0.25585991,67103.0,67102.0,0.63105]
[1721728869604,0.25785991,67103.0,67102.0,0.63105]
[1721728869830,0.34703032,67103.0,67102.0,0.63105]
[1721728870059,0.33903032,67103.0,67102.0,0.63105]
[1721728870302,0.34103032,67103.0,67102.0,0.63205]
[1721728870526,0.25585991,67103.0,67102.0,0.63105]
[1721728870757,0.25785991,67103.0,67102.0,0.63105]
[1721728870999,0.27285991,67103.0,67102.0,0.63105]
[1721728871285,0.27485991,67103.0,67102.0,0.63105]
[1721728871492,0.27485991,67103.0,67102.0,0.59605]
[1721728871664,0.27085991,67103.0,67102.0,0.59605]
[1721728871841,0.27085991,67103.0,67102.0,0.63105]
[1721728872069,0.28485991,67103.0,67102.0,0.63105]
[1721728872724,0.29285991,67103.0,67102.0,0.63205]
[1721728873157,0.28485991,67103.0,67102.0,0.63105]
[1721728873364,0.27085991,67103.0,67102.0,0.63105]
[1721728873569,0.27885991,67103.0,67102.0,0.63205]
[1721728873760,0.27085991,67103.0,67102.0,0.63105]
[1721728874546,0.28485991,67103.0,67102.0,0.63105]
[1721728874792,0.28385991,67103.0,67102.0,0.63205]
[1721728875023,0.26085991,67103.0,67102.0,0.63205]
[1721728875231,0.27485991,67103.0,67102.0,0.63205]
[1721728875448,0.27485991,67103.0,67102.0,0.632974]
[1721728876403,0.27485991,67103.0,67102.0,0.549974]
[1721728876624,0.27485991,67103.0,67102.0,0.632974]
[1721728876625,0.36185991,67103.0,67102.0,0.632974]
[1721728877024,0.36185991,67103.0,67102.0,0.597974]
[1721728878113,0.36185991,67103.0,67102.0,0.632974]
[1721728878447,0.29785991,67103.0,67102.0,0.632974]
[1721728878848,0.29756186,67103.0,67102.0,0.632974]
[1721728879847,0.28456186,67103.0,67102.0,0.631974]
[1721728880047,0.27056186,67103.0,67102.0,0.631974]
[1721728880225,0.29856186,67103.0,67102.0,0.632974]
[1721728881285,0.29856186,67103.0,67102.0,0.714574]
[1721728884670,0.27556186,67103.0,67102.0,0.714574]
[1721728888189,0.27556186,67103.0,67102.0,0.549974]
[1721728888390,0.35876186,67103.0,67102.0,0.632974]
[1721728889380,0.29856186,67103.0,67102.0,0.632974]
[1721728893124,0.29856186,67103.0,67102.0,0.714274]
[1721728893266,0.43242229,67103.0,67102.0,0.714274]
[1721728893868,0.29856186,67103.0,67102.0,0.714274]
[1721728894273,0.43242229,67103.0,67102.0,0.714274]
[1721728894516,0.40951497,67103.0,67102.0,0.714274]
[1721728895245,0.27556186,67103.0,67102.0,0.714274]
[1721728895449,0.32412448,67103.0,67102.0,0.714274]
[1721728897558,0.32551241,67103.0,67102.0,0.714274]
[1721728900562,0.27556186,67103.0,67102.0,0.714274]
[1721728900766,0.32548308,67103.0,67102.0,0.714274]
[1721728903842,0.32477361,67103.0,67102.0,0.714274]
[1721728904875,0.32477361,67103.0,67102.0,0.632974]
[1721728907124,0.32420401,67103.0,67102.0,0.632974]
[1721728910281,0.32459251,67103.0,67102.0,0.632974]
[1721728912581,0.32470989,67103.0,67102.0,0.632974]
[1721728914421,0.34770989,67103.0,67102.0,0.632974]
[1721728916579,0.34825562,67103.0,67102.0,0.632974]
[1721728919706,0.29856186,67103.0,67102.0,0.632974]
[1721728919907,0.34900385,67103.0,67102.0,0.632974]
[1721728920340,0.32600385,67103.0,67102.0,0.632974]
[1721728922032,0.32600385,67103.0,67102.0,0.710974]
[1721728923011,0.32606167,67103.0,67102.0,0.710974]
[1721728926002,0.32251624,67103.0,67102.0,0.710974]
[1721728927747,0.27556186,67103.0,67102.0,0.710974]
[1721728928223,0.32670611,67103.0,67102.0,0.710974]
[1721728928334,0.17556186,67103.0,67102.0,0.710974]
[1721728929251,0.16156186,67103.0,67102.0,0.710974]
[1721728929379,0.14756186,67103.0,67102.0,0.709974]
[1721728929581,0.16156186,67103.0,67102.0,0.709974]
[1721728929784,0.17256186,67103.0,67102.0,0.710974]
[1721728929978,0.15856186,67103.0,67102.0,0.710974]
[1721728930630,0.16556186,67103.0,67102.0,0.710974]
[1721728933487,0.17056186,67103.0,67102.0,0.710974]
[1721728934148,0.30480982,67103.0,67102.0,0.710974]
[1721728934584,0.3048048,67103.0,67102.0,0.710974]
[1721728934916,0.17056186,67103.0,67102.0,0.710974]
[1721728935140,0.30480482,67103.0,67102.0,0.710974]
[1721728935350,0.17056186,67103.0,67102.0,0.710974]
[1721728936587,0.30479041,67103.0,67102.0,0.710974]
[1721728936791,0.17056186,67103.0,67102.0,0.710974]
[1721728940080,0.02354195,67103.0,67102.0,0.710974]
[1721728940280,0.02354195,67103.0,67102.0,0.760974]
[1721728940487,0.02354195,67103.0,67102.0,0.825874]
[1721728940690,0.13534626,67103.0,67102.0,0.825874]
[1721728940890,0.11298452,67103.0,67102.0,0.99971923]
[1721728941097,0.10698452,67103.0,67102.0,0.99971923]
[1721728941320,0.01754195,67103.0,67102.0,0.99971923]
[1721728941537,0.07360831,67103.0,67102.0,0.99871923]
[1721728941921,0.06760831,67103.0,67102.0,0.99871923]
[1721728942117,0.00054195,67103.0,67102.0,1.0007152]
[1721728942329,0.06860852,67103.0,67102.0,1.0007152]
[1721728942495,0.06860852,67103.0,67102.0,0.9987152]
[1721728942701,0.00154195,67103.0,67102.0,0.9987152]
[1721728942920,0.00154195,67103.0,67102.0,1.0517152]
[1721728944198,0.00054195,67103.0,67102.0,1.0517152]
[1721728944608,0.00154195,67103.0,67102.0,1.0487152]
[1721728945024,0.00154195,67103.0,67102.0,1.0537152]
[1721728945235,0.00254195,67103.0,67102.0,1.0487152]
[1721728945642,0.00254195,67103.0,67102.0,1.0517152]
[1721728948494,0.00254195,67103.0,67102.0,1.05170903]
[1721728951489,0.00254195,67103.0,67102.0,0.927874]
[1721728951619,0.00254195,67103.0,67102.0,1.05170903]
[1721728953796,0.00254195,67103.0,67102.0,0.86870903]
[1721728954005,0.00254195,67103.0,67102.0,1.05170903]
[1721728955696,0.00254195,67103.0,67102.0,0.86870903]
[1721728956056,0.00254195,67103.0,67102.0,1.05170903]
[1721728956286,0.00084,67108.0,67107.0,0.233]
[1721728956486,0.00084,67108.0,67107.0,0.89016301]
[1721728957849,0.00084,67108.0,67107.0,0.89016278]
[1721728958461,0.00084,67108.0,67107.0,0.58766278]
[1721728958593,0.00184,67108.0,67107.0,0.80003]
[1721728958803,0.04646579,67108.0,67107.0,0.80003]
[1721728959000,0.04646579,67108.0,67107.0,0.85003]
[1721728959426,0.04746579,67108.0,67107.0,0.85003]
[1721728960308,0.04646579,67108.0,67107.0,0.85003]
[1721728960556,0.04746579,67108.0,67107.0,0.85003]
[1721728960965,0.00284,67108.0,67107.0,0.90003]
[1721728961674,0.00184,67108.0,67107.0,0.90003]
[1721728961885,0.00184,67108.0,67107.0,0.85003]
[1721728962090,0.00284,67108.0,67107.0,0.85905521]
[1721728962292,0.10917025,67108.0,67107.0,0.72625521]
[1721728962706,0.06454,67108.0,67107.0,0.72625521]
[1721728963287,0.06254,67108.0,67107.0,0.77625521]
[1721728963497,0.06254,67108.0,67107.0,0.72625521]
[1721728963641,0.00184,67108.0,67107.0,0.77625521]
[1721728964284,0.00284,67108.0,67107.0,0.82625521]
[1721728964480,0.00284,67108.0,67107.0,0.85295521]
[1721728965136,0.00284,67108.0,67107.0,0.80295521]
[1721728965335,0.06879864,67108.0,67107.0,0.80295521]
[1721728965776,0.06979864,67108.0,67107.0,0.80295521]
[1721728966384,0.06879864,67108.0,67107.0,0.80295521]
[1721728966695,0.09211818,67108.0,67107.0,0.80295521]
[1721728966933,0.34075764,67108.0,67107.0,0.64005521]
[1721728967142,0.22915991,67108.0,67107.0,0.63103]
[1721728967551,0.29375991,67108.0,67107.0,0.63103]
[1721728967761,0.29275991,67108.0,67107.0,0.63103]
[1721728968171,0.29375991,67108.0,67107.0,0.63103]
[1721728969047,0.29275991,67108.0,67107.0,0.63103]
[1721728969516,0.29375991,67108.0,67107.0,0.63103]
[1721728973522,0.42785238,67108.0,67107.0,0.63103]
[1721728973758,0.29375991,67108.0,67107.0,0.63103]
[1721728973988,0.42785238,67108.0,67107.0,0.63103]
[1721728974226,0.39375991,67108.0,67107.0,0.63103]
[1721728977222,0.45932674,67108.0,67107.0,0.59603]
[1721728978977,0.45832674,67108.0,67107.0,0.59603]
[1721728979139,0.47032674,67108.0,67107.0,0.59603]
[1721728979564,0.45832674,67108.0,67107.0,0.59603]
[1721728979774,0.45703348,67108.0,67107.0,0.59603]
[1721728979974,0.47103348,67108.0,67107.0,0.59603]
[1721728980178,0.48403348,67108.0,67107.0,0.59703]
[1721728980560,0.47103348,67108.0,67107.0,0.54803]
[1721728980983,0.48503348,67108.0,67107.0,0.58403]
[1721728981823,0.48503348,67108.0,67107.0,0.54903]
[1721728982664,0.48503348,67108.0,67107.0,0.58403]
[1721728982665,0.44275991,67108.0,67107.0,0.58403]
[1721728982873,0.48634658,67108.0,67107.0,0.54903]
[1721728984199,0.63705573,67108.0,67107.0,0.54903]
[1721728984403,0.59346906,67108.0,67107.0,0.54903]
[1721728984672,0.59346906,67108.0,67107.0,0.58403]
[1721728985880,0.44275991,67108.0,67107.0,0.58403]
[1721728986129,0.59344782,67108.0,67107.0,0.58403]
[1721728986303,0.44275991,67108.0,67107.0,0.58403]
[1721728986711,0.64275991,67108.0,67107.0,0.54903]
[1721728986911,0.83758433,67108.0,67107.0,0.54903]
[1721728988374,0.68689642,67108.0,67107.0,0.54903]
[1721728989130,0.68698697,67108.0,67107.0,0.54903]
[1721728989329,0.68698667,67108.0,67107.0,0.54903]
[1721728989725,0.83762803,67108.0,67107.0,0.54903]
[1721728989959,1.88072203,67108.0,67107.0,0.54903]
[1721728990155,1.73008067,67108.0,67107.0,0.54903]
[1721728990509,1.88072203,67108.0,67107.0,0.54903]
[1721728991135,1.73008067,67108.0,67107.0,0.54903]
[1721728991337,1.88072203,67108.0,67107.0,0.54903]
[1721728992291,1.72954237,67108.0,67107.0,0.54903]
[1721728992466,1.88016294,67108.0,67107.0,0.54903]
[1721728993231,1.72954237,67108.0,67107.0,0.54903]
[1721728993891,1.88014828,67108.0,67107.0,0.54903]
[1721728995557,1.92352309,67108.0,67107.0,0.54903]
[1721728998012,1.7722725,67108.0,67107.0,0.54903]
[1721728998194,1.8320175,67108.0,67107.0,0.54903]
[1721728999368,2.1820445,67108.0,67107.0,0.54903]
[1721728999570,2.1970445,67108.0,67107.0,0.54903]
[1721728999819,2.1820445,67108.0,67107.0,0.54903]
[1721729000876,2.1680445,67108.0,67107.0,0.54803]
[1721729001078,2.41171233,67108.0,67107.0,0.518227]
[1721729001290,2.99376633,67108.0,67107.0,0.30320268]
[1721729001486,3.00776633,67108.0,67107.0,0.27849695]
[1721729002003,3.02176633,67108.0,67107.0,0.27849695]
[1721729002208,2.97823084,67108.0,67107.0,0.27849695]
[1721729002410,2.96423084,67108.0,67107.0,0.27849695]
[1721729002826,2.97823084,67108.0,67107.0,0.27849695]
[1721729003252,2.96423084,67108.0,67107.0,0.27849695]
[1721729003455,2.95023084,67108.0,67107.0,0.27849695]
[1721729003896,2.96423084,67108.0,67107.0,0.27849695]
[1721729004176,2.95023084,67108.0,67107.0,0.27849695]
[1721729004595,2.97823084,67108.0,67107.0,0.27849695]
[1721729005033,2.85364256,67108.0,67107.0,0.27849695]
[1721729005233,2.99576044,67108.0,67107.0,0.27849695]
[1721729006995,2.99576044,67108.0,67107.0,0.25591123]
[1721729007933,2.99576044,67108.0,67107.0,0.10655983]
[1721729008165,0.916046,67093.0,67092.0,0.18922176]
[1721729008341,1.91465424,67093.0,67092.0,0.18922176]
[1721729008556,2.62584024,67093.0,67092.0,0.18922176]
[1721729008885,2.54501031,67093.0,67092.0,0.18922176]
[1721729009035,2.53001031,67093.0,67092.0,0.18922176]
[1721729009219,2.69997296,67093.0,67092.0,0.18922176]
[1721729009816,2.71497296,67093.0,67092.0,0.18922176]
[1721729010056,2.72897296,67093.0,67092.0,0.18922176]
[1721729010464,2.74297296,67093.0,67092.0,0.18922176]
[1721729011323,2.7412912,67093.0,67092.0,0.18922176]
[1721729012898,2.7262912,67093.0,67092.0,0.18922176]
[1721729013137,2.7412912,67093.0,67092.0,0.18922176]
[1721729014506,2.69750056,67093.0,67092.0,0.18922176]
[1721729014730,2.74131871,67093.0,67092.0,0.18922176]
[1721729015278,3.11862451,67093.0,67092.0,0.18922176]
[1721729016566,3.41671751,67093.0,67092.0,0.18922176]
[1721729016777,3.42549163,67093.0,67092.0,0.18922176]
[1721729017202,3.34669163,67093.0,67092.0,0.18922176]
[1721729017420,1.44819381,67093.0,67092.0,0.18922176]
[1721729017633,2.08975689,67093.0,67092.0,0.18922176]
[1721729017854,2.07575689,67093.0,67092.0,0.18922176]
[1721729018062,2.15475689,67093.0,67092.0,0.18922176]
[1721729018272,2.29971954,67093.0,67092.0,0.18922176]
[1721729018480,2.59981254,67093.0,67092.0,0.18922176]
[1721729018692,2.30171954,67093.0,67092.0,0.18922176]
[1721729018905,2.63681254,67093.0,67092.0,0.18922176]
[1721729019329,2.43871954,67093.0,67092.0,0.18922176]
[1721729019953,2.73681254,67093.0,67092.0,0.18922176]
[1721729020784,2.74293002,67093.0,67092.0,0.18922176]
[1721729021192,2.74293002,67093.0,67092.0,0.18916852]
[1721729021399,2.59596737,67093.0,67092.0,0.18916852]
[1721729021601,2.79596737,67093.0,67092.0,0.18916852]
[1721729023610,2.94628303,67093.0,67092.0,0.18916852]
[1721729023846,2.94595061,67093.0,67092.0,0.18916852]
[1721729025742,2.79563478,67093.0,67092.0,0.18916852]
[1721729025972,2.94259743,67093.0,67092.0,0.18916852]
[1721729027027,2.90847468,67093.0,67092.0,0.18916852]
[1721729027239,3.01209192,67093.0,67092.0,0.18916852]
[1721729029071,3.01209192,67093.0,67086.0,0.009229]
[1721729029072,1.408517,67088.0,67086.0,0.009229]
[1721729029418,1.1079,67087.0,67086.0,0.009229]
[1721729029548,2.67596815,67087.0,67086.0,0.009229]
[1721729029758,2.71494283,67087.0,67086.0,0.009229]
[1721729030377,2.67401715,67087.0,67086.0,0.009229]
[1721729030598,2.8209798,67087.0,67086.0,0.004599]
[1721729031036,2.87590548,67087.0,67086.0,0.004599]
[1721729031475,2.8489798,67087.0,67086.0,0.004599]